bitfinex-derivatives/quotes_SOLF0:USTF0_20251216
["timestamp","ask_amount","ask_price","bid_price","bid_amount"]
[1765887444848,0.05078696,128.65,128.62,3.30379012]
[1765887446844,0.05078696,128.65,128.63,3.25]
[1765887448262,0.05078696,128.65,128.64,3.25]
[1765887451162,64.77765826,128.66,128.65,10.2472]
[1765887451680,9.69477049,128.7,128.66,3.25]
[1765887451873,9.69477049,128.7,128.69,1.93540416]
[1765887452472,3.98762374,128.7,128.69,1.93540416]
[1765887452971,66.15467793,128.71,128.69,1.93540416]
[1765887453677,3.98762374,128.7,128.69,1.93540416]
[1765887457780,9.69146728,128.7,128.68,0.05379367]
[1765887457976,3.98762374,128.7,128.68,0.05379367]
[1765887458182,5.70447136,128.69,128.68,0.05379367]
[1765887460273,5.70447136,128.69,128.64,16.0]
[1765887460478,3.98762374,128.68,128.67,1.93524754]
[1765887463078,4.03792947,128.69,128.67,1.93524754]
[1765887463383,11.03312947,128.69,128.67,1.93524754]
[1765887464281,6.9961,128.67,128.66,0.05491449]
[1765887464580,82.7590357,128.67,128.66,0.05491449]
[1765887465581,6.997,128.66,128.61,3.07]
[1765887465782,6.997,128.66,128.65,1.93744846]
[1765887469386,9.55016286,128.66,128.65,1.93744846]
[1765887469686,9.55016252,128.66,128.65,1.93744846]
[1765887470488,15.24448695,128.66,128.65,1.93744846]
[1765887471187,15.24448695,128.66,128.64,0.05122955]
[1765887471384,9.55016252,128.66,128.64,0.05122955]
[1765887473095,5.69309579,128.65,128.64,0.05122955]
[1765887475585,9.55016252,128.66,128.64,0.05122955]
[1765887481292,114.54270806,128.65,128.59,3.07]
[1765887481595,108.8719,128.62,128.57,3.07]
[1765887481785,108.8719,128.62,128.51,108.9603]
[1765887481786,180.67439042,128.61,128.54,3.07]
[1765887481988,174.9824,128.61,128.54,3.07]
[1765887482283,7.0014,128.58,128.56,0.04950082]
[1765887482496,68.65316252,128.57,128.56,0.04950082]
[1765887490100,7.0024,128.56,128.52,3.2]
[1765887490400,2.55316252,128.54,128.52,3.2]
[1765887490597,66.12,128.53,128.52,3.2]
[1765887494895,66.12,128.53,128.51,3.23922173]
[1765887495100,66.12,128.53,128.51,0.03922173]
[1765887495498,2.55316252,128.52,128.51,0.03922173]
[1765887498302,2.55316252,128.52,128.51,3.23922173]
[1765887501903,68.67316252,128.53,128.51,3.23922173]
[1765887502211,68.67316252,128.53,128.51,0.03922173]
[1765887502403,68.67316252,128.53,128.52,1.9208025]
[1765887502602,68.67316252,128.53,128.48,3.2]
[1765887502603,7.0047,128.52,128.48,3.2]
[1765887502805,2.55316252,128.49,128.46,3.2]
[1765887503100,66.14,128.48,128.46,3.2]
[1765887503810,66.19529918,128.48,128.46,3.2]
[1765887506609,0.05529918,128.48,128.46,3.2]
[1765887511010,2.55316252,128.47,128.43,16.0]
[1765887511317,2.55316252,128.45,128.4,3.2]
[1765887511616,2.55316252,128.43,128.4,3.2]
[1765887514011,2.55316252,128.42,128.4,3.2]
[1765887516211,2.61164603,128.44,128.41,3.15]
[1765887518318,2.55316252,128.42,128.39,3.15]
[1765887518518,2.60965355,128.42,128.39,3.15]
[1765887522723,0.05649103,128.42,128.39,3.15]
[1765887529128,0.05649103,128.42,128.4,3.15]
[1765887530622,0.05649103,128.42,128.41,3.15]
[1765887531028,66.2,128.45,128.41,3.15]
[1765887531423,66.2,128.45,128.43,3.15]
[1765887531614,7.0052,128.51,128.43,3.15]
[1765887531819,7.0052,128.51,128.42,109.0378]
[1765887531820,66.2,128.5,128.48,1.9236528]
[1765887532135,66.25237195,128.5,128.48,5.12848917]
[1765887532430,66.25237195,128.5,128.49,1.9236528]
[1765887532732,70.25427454,128.5,128.49,1.9236528]
[1765887533030,66.25237195,128.5,128.49,1.9236528]
[1765887537332,0.05237195,128.5,128.49,1.9236528]
[1765887537524,0.05237195,128.5,128.49,3.15]
[1765887539034,0.05237195,128.5,128.48,0.05483637]
[1765887539226,0.05237195,128.5,128.48,3.20483637]
[1765887541728,0.05237195,128.5,128.48,0.05483637]
[1765887541931,0.05237195,128.5,128.49,1.92960887]
[1765887545235,0.05237195,128.5,128.49,3.08]
[1765887545434,3.9984891,128.56,128.49,3.08]
[1765887545732,3.9984891,128.56,128.53,5.0095853]
[1765887545733,70.1984891,128.56,128.53,5.0095853]
[1765887545934,70.1984891,128.56,128.53,3.08]
[1765887546635,77.24984594,128.56,128.54,1.92881917]
[1765887548040,73.25135684,128.56,128.54,1.92881917]
[1765887548632,66.24905684,128.56,128.55,5.00881917]
[1765887548830,66.24905684,128.56,128.55,3.08]
[1765887549035,66.24905684,128.56,128.54,3.08]
[1765887551230,66.24905684,128.56,128.53,0.05508455]
[1765887551231,66.24905684,128.56,128.53,3.13508455]
[1765887551443,66.24905684,128.56,128.55,1.92236034]
[1765887552629,66.24905684,128.56,128.55,3.08]
[1765887555643,66.24905684,128.56,128.54,3.08]
[1765887563247,66.16,128.61,128.55,3.08]
[1765887563450,66.16,128.61,128.59,1.9149194]
[1765887564344,66.20919695,128.61,128.59,1.96779198]
[1765887564552,66.20919695,128.61,128.59,0.05287258]
[1765887564753,66.20919695,128.61,128.59,1.96816208]
[1765887564948,66.20919695,128.61,128.6,1.91526619]
[1765887565542,66.20919695,128.61,128.6,4.99526619]
[1765887565740,66.20919695,128.61,128.59,3.13287258]
[1765887565944,66.20919695,128.61,128.6,1.91493736]
[1765887567344,66.20919695,128.61,128.59,0.05287258]
[1765887567950,66.20919695,128.61,128.59,3.13287258]
[1765887569455,66.20919695,128.61,128.59,0.05287258]
[1765887572059,66.20919695,128.61,128.59,3.13287258]
[1765887572657,66.20919695,128.61,128.59,0.05287258]
[1765887573256,66.20919695,128.61,128.59,3.13287258]
[1765887574359,0.04919695,128.61,128.59,3.13287258]
[1765887577566,0.04919695,128.61,128.59,10.13317258]
[1765887577767,0.04919695,128.61,128.6,3.3]
[1765887588686,0.04919695,128.61,128.59,3.35287258]
[1765887593389,2.55408181,128.6,128.59,0.05287258]
[1765887598497,5.64779121,128.63,128.6,3.3]
[1765887598693,132.1619,128.71,128.6,3.3]
[1765887598694,2.55408181,128.72,128.66,3.3]
[1765887598997,2.55408181,128.72,128.7,5.22452988]
[1765887599299,68.67408181,128.73,128.71,1.92439802]
[1765887599487,68.67408181,128.73,128.71,1.97660158]
[1765887599691,68.7259898,128.73,128.71,0.05220356]
[1765887599892,68.7259898,128.73,128.71,1.97479368]
[1765887600198,68.7259898,128.73,128.71,0.05220356]
[1765887600398,68.7259898,128.73,128.71,1.97515502]
[1765887600599,68.7259898,128.73,128.71,0.05220356]
[1765887600801,2.6059898,128.73,128.71,0.05220356]
[1765887600994,66.12,128.72,128.71,0.05220356]
[1765887601504,0.05190799,128.73,128.71,3.35220356]
[1765887601797,68.7259898,128.73,128.71,0.05220356]
[1765887601985,68.7259898,128.73,128.72,1.9197617]
[1765887602896,2.6059898,128.73,128.72,1.9197617]
[1765887603198,68.7259898,128.73,128.72,1.9197617]
[1765887603797,68.7059898,128.73,128.72,1.9197617]
[1765887603997,2.6059898,128.73,128.72,1.9197617]
[1765887604197,2.6059898,128.73,128.71,0.05220356]
[1765887604399,66.1,128.72,128.71,0.05220356]
[1765887605400,68.65408181,128.72,128.71,0.05220356]
[1765887606594,66.1,128.72,128.71,0.05220356]
[1765887607003,9.5991898,128.73,128.71,0.05220356]
[1765887607200,0.05190799,128.73,128.72,5.26622313]
[1765887607397,66.15190799,128.73,128.72,3.35]
[1765887609901,0.05190799,128.73,128.72,3.35]
[1765887610098,66.13190799,128.73,128.72,3.35]
[1765887610302,0.05190799,128.73,128.72,3.35]
[1765887610501,108.7168,128.81,128.72,3.35]
[1765887610502,66.08,128.76,128.72,3.35]
[1765887610703,66.08,128.76,128.74,3.35]
[1765887611098,66.08,128.75,128.74,3.35]
[1765887613212,66.08,128.75,128.73,3.40704881]
[1765887614899,66.08,128.75,128.73,0.05704881]
[1765887615107,2.54907192,128.74,128.73,0.05704881]
[1765887616007,68.62907192,128.74,128.73,0.05704881]
[1765887616917,2.54907192,128.74,128.73,0.05704881]
[1765887617108,2.54907192,128.71,128.68,3.35]
[1765887617804,2.54907192,128.69,128.66,3.35]
[1765887618008,2.54907192,128.67,128.66,0.0528383]
[1765887618205,2.54907192,128.67,128.66,3.4028383]
[1765887618408,2.54907192,128.67,128.66,0.0528383]
[1765887621317,68.62907192,128.67,128.66,0.0528383]
[1765887623625,66.08,128.67,128.66,0.0528383]
[1765887623821,68.62907192,128.67,128.66,0.0528383]
[1765887626233,108.8476,128.65,128.59,3.35]
[1765887626433,2.54907192,128.6,128.54,3.35]
[1765887626735,2.54907192,128.58,128.54,3.35]
[1765887627023,66.08,128.57,128.54,3.35]
[1765887627219,66.13249097,128.57,128.54,3.40248786]
[1765887627423,0.05249097,128.57,128.56,3.35]
[1765887627818,0.05249097,128.57,128.56,4.91]
[1765887634837,0.05249097,128.57,128.56,3.35]
[1765887635040,2.60156289,128.57,128.54,3.16248786]
[1765887635245,2.54907192,128.55,128.54,3.16248786]
[1765887636338,0.05249097,128.57,128.54,3.16248786]
[1765887636540,2.54907192,128.56,128.54,3.16248786]
[1765887637546,0.05249097,128.57,128.54,3.16248786]
[1765887637748,2.54907192,128.56,128.54,3.16248786]
[1765887639639,0.05249097,128.57,128.54,3.16248786]
[1765887640641,0.05249097,128.57,128.56,3.11]
[1765887642747,0.00249097,128.57,128.56,3.11]
[1765887643845,2.54907192,128.64,128.6,3.11]
[1765887644051,42.96,128.65,128.63,1.90700886]
[1765887644237,42.96,128.65,128.64,1.90700886]
[1765887644436,45.50907192,128.65,128.59,3.11]
[1765887644635,42.96,128.65,128.64,1.90687801]
[1765887645746,45.50907192,128.65,128.63,0.05089088]
[1765887646051,47.06907192,128.65,128.63,0.05089088]
[1765887647357,66.12,128.64,128.63,0.05089088]
[1765887647745,0.05866521,128.66,128.63,0.05089088]
[1765887647947,66.12,128.64,128.63,0.05089088]
[1765887654462,3.98952126,128.65,128.63,0.05089088]
[1765887654753,66.12,128.64,128.63,0.05089088]
[1765887656760,6.9986,128.63,128.58,3.11]
[1765887656962,10.98812126,128.63,128.61,1.91445081]
[1765887657659,11.04242769,128.63,128.61,1.96406785]
[1765887657868,11.04242769,128.63,128.61,0.04961704]
[1765887658158,11.04242769,128.63,128.61,1.96562451]
[1765887658362,11.04242769,128.63,128.61,0.04961704]
[1765887658562,11.04242769,128.63,128.61,1.96730099]
[1765887658859,11.04242769,128.63,128.61,0.04961704]
[1765887659062,11.04242769,128.63,128.61,1.96803941]
[1765887659263,11.04242769,128.63,128.61,0.04961704]
[1765887659459,11.04242769,128.63,128.61,1.97009118]
[1765887659661,11.04242769,128.63,128.61,0.04961704]
[1765887659856,7.05290643,128.63,128.61,1.97051586]
[1765887660162,7.05290643,128.63,128.61,0.04961704]
[1765887660459,66.12,128.62,128.61,1.97065072]
[1765887660653,66.12,128.62,128.61,0.04961704]
[1765887661156,66.12,128.62,128.61,1.97072593]
[1765887661357,66.12,128.62,128.61,0.04961704]
[1765887661556,66.12,128.62,128.61,1.97194562]
[1765887661758,66.12,128.62,128.61,0.04961704]
[1765887662063,66.12,128.62,128.61,1.97211596]
[1765887662365,66.12,128.62,128.61,0.04961704]
[1765887662562,66.12,128.62,128.61,1.97352153]
[1765887662863,66.12,128.62,128.61,0.04961704]
[1765887663066,66.12,128.62,128.61,1.97352153]
[1765887663265,66.12,128.62,128.61,0.04961704]
[1765887663565,66.12,128.62,128.61,1.97436061]
[1765887663757,66.12,128.62,128.61,0.04961704]
[1765887663957,66.12,128.62,128.61,1.97436061]
[1765887664167,66.12,128.62,128.61,0.04961704]
[1765887664369,66.12,128.62,128.61,1.9742348]
[1765887664663,66.12,128.62,128.61,0.04961704]
[1765887664962,66.12,128.62,128.61,1.97458197]
[1765887665166,66.12,128.62,128.61,0.04961704]
[1765887665374,66.12,128.62,128.61,1.97472066]
[1765887665567,66.12,128.62,128.61,0.04961704]
[1765887665757,66.12,128.62,128.61,1.97501035]
[1765887665953,66.12,128.62,128.61,0.04961704]
[1765887666164,66.12,128.62,128.61,1.97523587]
[1765887666664,66.12,128.62,128.58,3.11]
[1765887666665,7.0001,128.6,128.54,3.2]
[1765887666870,3.98952126,128.59,128.58,1.92742973]
[1765887667968,3.98952126,128.59,128.57,0.05529968]
[1765887668176,66.12,128.58,128.57,0.05529968]
[1765887668863,66.12,128.58,128.51,3.2]
[1765887669062,3.98952126,128.57,128.56,1.92917674]
[1765887669864,0.05442369,128.58,128.56,5.12917674]
[1765887670172,66.17442369,128.58,128.57,3.2]
[1765887670665,66.17442369,128.58,128.56,3.2]
[1765887672564,73.17572369,128.58,128.55,0.04582102]
[1765887672765,73.17572369,128.58,128.57,1.92917976]
[1765887673276,73.17572369,128.58,128.55,0.04582102]
[1765887673277,73.17572369,128.58,128.56,1.92917976]
[1765887673767,10.99152126,128.57,128.55,0.04582102]
[1765887675576,0.05442369,128.58,128.56,1.92782968]
[1765887675779,66.19442369,128.58,128.56,3.2]
[1765887676467,70.18394495,128.58,128.55,0.04582102]
[1765887676776,70.18394495,128.58,128.57,1.92697619]
[1765887677566,66.19442369,128.58,128.55,0.04582102]
[1765887677774,3.98952126,128.57,128.56,1.92750156]
[1765887678174,3.99520941,128.57,128.56,1.92750156]
[1765887680177,3.99520941,128.57,128.5,3.2]
[1765887680396,179.04910941,128.58,128.5,3.2]
[1765887680883,10.99750941,128.56,128.5,3.2]
[1765887681077,10.99750941,128.56,128.54,1.92776986]
[1765887681282,11.05504676,128.56,128.54,1.92776986]
[1765887683284,0.05753735,128.56,128.55,5.12776986]
[1765887683473,0.05753735,128.56,128.55,3.2]
[1765887694294,66.14,128.6,128.56,3.3]
[1765887694593,66.14,128.6,128.59,1.92342297]
[1765887699190,0.05280409,128.61,128.59,5.22342297]
[1765887699383,66.14,128.6,128.59,3.3]
[1765887702994,66.14,128.6,128.58,3.35521877]
[1765887703394,66.14,128.6,128.59,1.92632486]
[1765887705595,71.78354857,128.6,128.58,0.05521877]
[1765887705795,3.99314981,128.59,128.58,0.05521877]
[1765887706790,9.68950247,128.61,128.58,0.05521877]
[1765887706988,66.14,128.6,128.58,3.35521877]
[1765887707190,66.14,128.6,128.59,1.92701077]
[1765887708789,71.78354857,128.6,128.58,0.05521877]
[1765887708990,3.99314981,128.59,128.58,0.05521877]
[1765887710094,7.0014,128.58,128.51,3.3]
[1765887710300,3.99314981,128.54,128.49,3.3]
[1765887710602,66.14,128.53,128.49,3.3]
[1765887711194,0.05408099,128.52,128.49,3.3]
[1765887720603,0.05408099,128.52,128.5,3.3]
[1765887720604,0.00408099,128.52,128.5,3.3]
[1765887721203,66.16,128.51,128.46,3.3]
[1765887721500,66.16,128.51,128.47,0.05231858]
[1765887721694,66.16,128.51,128.48,3.3]
[1765887724002,66.16,128.51,128.49,3.05]
[1765887728906,10.92138587,128.6,128.5,3.05]
[1765887729116,10.92138587,128.6,128.54,3.05]
[1765887729117,66.16,128.59,128.54,3.05]
[1765887729411,66.16,128.59,128.56,1.92214445]
[1765887729598,66.16,128.59,128.57,1.91972533]
[1765887730010,66.21860118,128.59,128.57,1.97582645]
[1765887730202,66.21860118,128.59,128.57,0.05610112]
[1765887730409,0.05860118,128.59,128.57,1.9752794]
[1765887730603,0.05860118,128.59,128.57,0.05610112]
[1765887730799,0.05860118,128.59,128.57,1.97527629]
[1765887730998,0.05860118,128.59,128.57,0.05610112]
[1765887731197,0.05860118,128.59,128.57,1.97527589]
[1765887731403,0.05860118,128.59,128.57,0.05610112]
[1765887731701,0.05860118,128.59,128.57,1.97535315]
[1765887731904,0.05860118,128.59,128.57,0.05610112]
[1765887732105,0.05860118,128.59,128.57,1.97535372]
[1765887732305,0.05860118,128.59,128.57,0.05610112]
[1765887732502,0.05860118,128.59,128.57,1.9754307]
[1765887732707,0.05860118,128.59,128.57,0.05610112]
[1765887732919,0.05860118,128.59,128.57,1.97538469]
[1765887733214,0.05860118,128.59,128.57,0.05610112]
[1765887733410,7.05930118,128.59,128.57,0.05610112]
[1765887736819,7.05930118,128.59,128.52,3.05]
[1765887736820,108.9077,128.58,128.5,3.05]
[1765887737021,6.8519349,128.57,128.54,1.92199136]
[1765887737220,66.16,128.56,128.54,1.92199136]
[1765887737426,2.55739186,128.55,128.54,1.92199136]
[1765887738128,9.56049186,128.55,128.53,1.92199136]
[1765887738430,2.55739186,128.54,128.53,1.92268412]
[1765887739424,7.0031,128.55,128.53,1.92268412]
[1765887743931,7.0036,128.54,128.52,1.92268412]
[1765887744136,66.16,128.53,128.52,1.92268412]
[1765887745633,7.0548162,128.54,128.52,4.97268412]
[1765887745937,66.16,128.53,128.52,3.05]
[1765887746339,66.16,128.53,128.49,3.05]
[1765887747830,7.0548162,128.54,128.49,3.05]
[1765887748135,7.0548162,128.54,128.53,1.92516677]
[1765887748335,73.2148162,128.54,128.53,1.92516677]
[1765887748541,108.9503,128.53,128.47,3.05]
[1765887748738,0.05312094,128.51,128.47,3.05]
[1765887749041,66.16,128.5,128.47,3.05]
[1765887750946,73.1657,128.5,128.47,3.05]
[1765887751244,73.1657,128.5,128.49,1.92851903]
[1765887754534,73.1657,128.5,128.48,1.92851903]
[1765887755442,66.16,128.5,128.48,1.92851903]
[1765887759451,2.55983277,128.49,128.48,1.92851903]
[1765887759651,2.55983277,128.49,128.45,3.27]
[1765887759844,0.05368787,128.48,128.45,3.27]
[1765887760045,66.18,128.47,128.45,3.27]
[1765887762349,66.23368787,128.48,128.45,3.27]
[1765887763453,0.05368787,128.48,128.45,3.27]
[1765887764462,2.55983277,128.54,128.48,3.27]
[1765887766162,0.05968918,128.52,128.5,3.27]
[1765887768352,0.05968918,128.52,128.49,0.05035558]
[1765887768353,2.55983277,128.51,128.49,0.05035558]
[1765887768553,2.55983277,128.51,128.5,1.92594943]
[1765887768756,2.55983277,128.51,128.49,3.32035558]
[1765887768955,66.18,128.5,128.49,3.32035558]
[1765887769554,66.18,128.5,128.49,0.05035558]
[1765887771058,66.18,128.5,128.49,3.32035558]
[1765887772160,66.18,128.5,128.49,0.05035558]
[1765887775255,66.18,128.5,128.49,3.32035558]
[1765887780559,66.18,128.5,128.49,0.05035558]
[1765887790372,70.17734234,128.5,128.49,0.05035558]
[1765887793675,77.18274234,128.5,128.44,7.0083]
[1765887793862,3.99734234,128.48,128.44,10.3783]
[1765887794572,3.99734234,128.48,128.44,3.37]
[1765887794764,0.05633036,128.47,128.44,3.37]
[1765887806575,0.05633036,128.47,128.45,3.37]
[1765887808391,0.05633036,128.47,128.43,3.37]
[1765887808889,4.0536727,128.47,128.43,3.37]
[1765887809386,4.0536727,128.47,128.46,1.9300242]
[1765887809588,9.83053173,128.47,128.41,3.37]
[1765887809791,3.99734234,128.43,128.39,3.37]
[1765887809980,0.04927172,128.42,128.39,3.37]
[1765887811596,0.04927172,128.42,128.37,3.37]
[1765887811597,3.99734234,128.41,128.37,3.37]
[1765887815097,0.04927172,128.42,128.37,3.37]
[1765887815293,0.04927172,128.42,128.41,1.92556002]
[1765887815593,0.05474424,128.43,128.41,1.92556002]
[1765887816492,4.00362211,128.42,128.41,1.92556002]
[1765887816990,77.21392211,128.42,128.38,3.12]
[1765887818096,77.21392211,128.42,128.4,1.92333071]
[1765887819593,186.25592211,128.42,128.4,1.92333071]
[1765887820088,109.0536,128.41,128.34,3.12]
[1765887820284,4.05781636,128.39,128.34,3.12]
[1765887820498,66.22,128.38,128.34,3.12]
[1765887821100,66.22,128.38,128.37,1.92189018]
[1765887822391,0.05419425,128.39,128.37,5.04189018]
[1765887822591,66.27419425,128.39,128.38,5.04189018]
[1765887822791,66.27419425,128.39,128.38,3.12]
[1765887822991,66.27419425,128.39,128.36,3.12]
[1765887826502,66.27419425,128.39,128.38,1.91794105]
[1765887827485,66.27419425,128.39,128.35,3.12]
[1765887827685,0.05606375,128.38,128.35,3.12]
[1765887828290,0.05606375,128.38,128.32,3.12]
[1765887828492,4.05968586,128.38,128.32,3.12]
[1765887828693,4.05968586,128.38,128.36,1.91779849]
[1765887829200,11.07178586,128.38,128.36,1.91779849]
[1765887829801,7.0128,128.37,128.35,1.91779849]
[1765887829992,4.00362211,128.36,128.35,1.91779849]
[1765887831001,11.01642211,128.37,128.35,1.91779849]
[1765887834606,11.01642211,128.37,128.32,3.12]
[1765887834607,11.01642211,128.37,128.36,1.91779849]
[1765887834805,11.01642211,128.37,128.32,3.12]
[1765887835006,11.01642211,128.37,128.36,1.91737414]
[1765887837407,9.57744505,128.37,128.36,1.91737414]
[1765887837709,66.24,128.37,128.36,5.03737414]
[1765887837915,66.24,128.37,128.36,3.12]
[1765887838610,0.05606375,128.38,128.36,3.12]
[1765887838805,66.24,128.37,128.36,3.12]
[1765887840013,0.05606375,128.38,128.36,3.12]
[1765887840207,68.80464505,128.42,128.37,3.12]
[1765887840408,68.80464505,128.42,128.41,1.91679234]
[1765887842515,68.80464505,128.42,128.4,0.05735729]
[1765887842703,66.24,128.42,128.4,0.05735729]
[1765887842900,66.24,128.42,128.4,3.17735729]
[1765887843303,0.05889803,128.43,128.4,3.17735729]
[1765887843612,66.29889803,128.43,128.4,3.17735729]
[1765887847114,66.29889803,128.43,128.41,3.09]
[1765887847322,66.29889803,128.43,128.42,3.09]
[1765887850322,0.05889803,128.43,128.42,3.09]
[1765887851121,2.62354308,128.43,128.4,19.14735729]
[1765887851416,2.62354308,128.43,128.41,3.09]
[1765887851811,2.62354308,128.43,128.4,19.14735729]
[1765887855617,2.62354308,128.43,128.4,3.14735729]
[1765887856425,2.62354308,128.43,128.4,0.05735729]
[1765887856725,0.05889803,128.43,128.42,1.92465696]
[1765887857619,2.62354308,128.43,128.42,1.92465696]
[1765887859323,2.62354308,128.43,128.41,1.92465696]
[1765887859529,68.78464505,128.42,128.41,1.92511308]
[1765887861631,68.78464505,128.42,128.4,3.14735729]
[1765887862532,68.78464505,128.42,128.4,0.05735729]
[1765887866146,66.22,128.42,128.4,3.14735729]
[1765887866342,68.78464505,128.42,128.4,3.14735729]
[1765887867846,68.78464505,128.42,128.41,1.92340534]
[1765887868144,68.78464505,128.42,128.4,3.14735729]
[1765887870538,68.78464505,128.42,128.4,0.05735729]
[1765887876639,66.22,128.42,128.4,0.05735729]
[1765887876841,68.78464505,128.42,128.4,0.05735729]
[1765887877046,68.78464505,128.42,128.41,1.92470031]
[1765887877547,68.78464505,128.42,128.4,0.05735729]
[1765887878944,75.79464505,128.42,128.36,3.3]
[1765887879245,81.57345932,128.42,128.39,1.92595407]
[1765887879448,75.79464505,128.42,128.39,1.92595407]
[1765887879646,81.57345932,128.42,128.39,1.92595407]
[1765887879949,7.0106,128.41,128.39,1.92595407]
[1765887880151,2.56464505,128.4,128.34,3.3]
[1765887880442,2.56464505,128.37,128.34,3.3]
[1765887881847,0.05698264,128.38,128.36,3.3]
[1765887882551,0.05698264,128.38,128.37,5.86464505]
[1765887883251,0.05698264,128.38,128.37,3.3]
[1765887883553,0.05698264,128.38,128.37,5.86464505]
[1765887884455,0.05698264,128.38,128.37,5.86232519]
[1765887894458,5.81869718,128.42,128.39,3.3]
[1765887894649,66.22,128.43,128.41,1.93065875]
[1765887894847,8.3808213,128.42,128.41,1.93065875]
[1765887895655,5.81849611,128.42,128.41,1.93065875]
[1765887895851,8.3808213,128.42,128.41,1.93065875]
[1765887897367,5.81849611,128.42,128.41,1.93065875]
[1765887897568,9.82262174,128.42,128.4,0.05799249]
[1765887897762,5.81849611,128.41,128.4,0.05799249]
[1765887899263,109.059,128.4,128.32,3.3]
[1765887899465,4.00412563,128.38,128.36,1.93400733]
[1765887899768,72.03849611,128.37,128.36,1.93400733]
[1765887900755,76.04262174,128.37,128.35,1.93400733]
[1765887900955,5.81849611,128.36,128.35,1.93400733]
[1765887901158,121.77174699,128.36,128.28,3.3]
[1765887901359,0.0565641,128.33,128.28,3.3]
[1765887901554,66.22,128.32,128.28,3.3]
[1765887901759,66.2965641,128.33,128.28,3.3]
[1765887902261,0.0565641,128.33,128.31,3.3]
[1765887902464,0.0565641,128.33,128.32,7.30412563]
[1765887902964,5.82340268,128.39,128.33,3.3]
[1765887903262,66.24,128.38,128.37,1.9334563]
[1765887903463,66.24,128.38,128.36,3.3]
[1765887903663,66.24,128.38,128.37,1.93276595]
[1765887904764,66.24,128.38,128.36,3.35680409]
[1765887905270,12.56779177,128.44,128.37,3.21]
[1765887905467,12.56779177,128.49,128.43,3.21]
[1765887905765,66.24,128.5,128.46,3.21]
[1765887905969,5.81636733,128.49,128.47,1.93031825]
[1765887906161,66.24,128.5,128.41,3.21]
[1765887906162,175.2173,128.5,128.41,3.21]
[1765887906360,175.2173,128.5,128.45,1.92807842]
[1765887906361,0.05630116,128.47,128.45,1.92807842]
[1765887906562,0.05630116,128.47,128.46,1.92807842]
[1765887906863,0.05630116,128.47,128.44,3.2650977]
[1765887907069,0.05630116,128.47,128.46,1.92778015]
[1765887908273,0.05630116,128.47,128.44,0.0550977]
[1765887908472,0.05630116,128.47,128.45,1.92671017]
[1765887908672,66.24,128.46,128.45,1.92671017]
[1765887909270,66.24,128.46,128.44,0.0550977]
[1765887911067,66.24,128.46,128.45,1.92639269]
[1765887915465,66.24,128.46,128.45,5.13639269]
[1765887915669,66.24,128.46,128.45,3.21]
[1765887915870,66.24,128.46,128.44,3.2650977]
[1765887916070,66.24,128.46,128.45,5.13418877]
[1765887916267,66.24,128.46,128.45,3.21]
[1765887919978,66.24,128.46,128.44,0.0550977]
[1765887921280,73.2481,128.46,128.44,0.0550977]
[1765887921882,66.24,128.46,128.45,1.92224019]
[1765887922285,73.2476,128.46,128.44,0.0550977]
[1765887923084,182.2556,128.46,128.44,0.0550977]
[1765887924883,4.00412563,128.45,128.44,0.0550977]
[1765887928880,7.0087,128.44,128.37,26.2223]
[1765887929183,70.22412563,128.43,128.42,1.923503]
[1765887930284,7.0097,128.42,128.41,0.05431726]
[1765887936997,70.22412563,128.43,128.41,3.33431726]
[1765887937191,0.05559261,128.44,128.43,3.28]
[1765887937497,66.27559261,128.44,128.43,3.28]
[1765887937804,108.9855,128.49,128.43,3.28]
[1765887937805,65.86313202,128.45,128.44,3.28]
[1765887937990,66.22,128.46,128.44,3.28]
[1765887938310,23.62745097,128.52,128.44,3.28]
[1765887938496,66.22,128.51,128.48,1.91796499]
[1765887938996,4.00412563,128.5,128.48,1.97544822]
[1765887939189,4.00412563,128.5,128.48,0.05748323]
[1765887939389,4.00412563,128.5,128.48,1.97499373]
[1765887939589,4.00412563,128.5,128.48,0.05748323]
[1765887939790,4.00412563,128.5,128.48,1.97536435]
[1765887939991,4.00412563,128.5,128.48,0.05748323]
[1765887940199,4.00412563,128.5,128.48,1.97454957]